Cogmind - Beta 15 @@@ ROGUE MODE // 2025.10.12 @ 10:59:35 Player: beans Result: Destroyed by Y-72 Warden with Railgun Performance ------------- Evolutions (6) 3000 Regions Visited (16) 3200 Robots Destroyed (129) 645 Value Destroyed (3237) 3237 Prototype IDs (19) 380 Alien Tech Used (0) 0 Bonus (838) 838 TOTAL SCORE: 11300 Bonus ------- High Alert Combat Kills 181 Follower Combat Kills 1696 Entered DSFs 500 Met Data Miner 300 Friendly Fire -1839 Cogmind --------- Core Integrity 0/1150 Matter 24/300 Energy 99/100 System Corruption 0% Temperature Cool (0) Movement Core (50) Location -4/Factory Parts ------- > --- POWER (1) -------- (None) > --- PROPULSION (4) --- (None) > --- UTILITY (10) ----- Enhanced Optical Array Advanced Targeting Computer > --- WEAPON (4) ------- (None) > --- INVENTORY (5) ---- Advanced Weapon Cycler Mapping Drone Bay (2/3) Combat Drone Bay (1/2) HERF Cannon Peak State ------------ > --- POWER ------------ Light Antimatter Reactor > --- PROPULSION ------- Flexi-carbon Leg Flexi-carbon Leg Backup Propulsion III > --- UTILITY ---------- Advanced Targeting Computer Advanced Targeting Computer Advanced Target Analyzer Advanced Weapon Cycler Authchip [Device] Improved Recalibrator > --- WEAPON ----------- Field Laser Heavy Laser Improved Proton Missile Launcher Heavy Rocket Launcher > --- INVENTORY -------- Advanced Remote Force Field Authchip [R/Combat] Improved System Restoration Module Scatter Rocket Array Scatter Rocket Array [Rating: 69] Favorites ----------- Power Light Antimatter Reactor Engine Cooled Ion Engine Power Core Light Nuclear Core Reactor Light Antimatter Reactor Propulsion Xenon Bombardment Thruster Leg Flexi-carbon Leg Wheel Wheel Hover Unit Backup Propulsion III Flight Unit Xenon Bombardment Thruster Utility Advanced Targeting Computer Device Advanced Weapon Cycler Processor Advanced Targeting Computer Hackware Authchip [Device] Weapon Field Laser Energy Gun Field Laser Energy Cannon Disruptor Cannon Ballistic Gun Autogun Launcher Heavy Rocket Launcher Build | -11 -10 -9 -8 -7 -7 -7 -7 -6 -6 -6 -6 -6 -6 -5 -5 -4 ------- Run | Yrd Mat Mat Mat Fac Was Fac DSF Fac Was Fac Low Low Dat Pro Fac Fac Slots Evolved 12 | . . 2 2 2 . . . 2 . . . . . . 2 2 Power . | . . . . . . . . . . . . . . . . . Propulsion 2 | . . . 2 . . . . . . . . . . . . . Utility 8 | . . 2 . . . . . 2 . . . . . . 2 2 Weapon 2 | . . . . 2 . . . . . . . . . . . . Parts Attached 90 | . 1 10 11 13 . . 9 3 4 13 4 1 . 5 11 5 Power 11 | . . 1 2 2 . . 1 . . 3 1 . . . . 1 Engine 6 | . . 1 2 . . . . . . 2 . . . . . 1 Core 4 | . . . . 2 . . 1 . . 1 . . . . . . Reactor 1 | . . . . . . . . . . . 1 . . . . . Propulsion 20 | . . 2 2 4 . . 4 . . 4 1 1 . . . 2 Treads . | . . . . . . . . . . . . . . . . . Leg 2 | . . . . . . . . . . . 1 1 . . . . Wheel 1 | . . . . . . . . . . . . . . . . 1 Hover 1 | . . . . . . . . . . . . . . . . 1 Flight 16 | . . 2 2 4 . . 4 . . 4 . . . . . . Utility 21 | . . 2 3 4 . . 3 1 2 . . . . . 6 . Device 12 | . . 2 1 1 . . 1 1 2 . . . . . 4 . Storage . | . . . . . . . . . . . . . . . . . Processor 7 | . . . 2 3 . . 1 . . . . . . . 1 . Hackware 2 | . . . . . . . 1 . . . . . . . 1 . Protection . | . . . . . . . . . . . . . . . . . Artifact . | . . . . . . . . . . . . . . . . . Weapon 38 | . 1 5 4 3 . . 1 2 2 6 2 . . 5 5 2 Energy Gun 14 | . . 3 4 2 . . . . . . 2 . . 3 . . Energy Cannon 4 | . . . . . . . . 2 . . . . . 1 . 1 Ballistic Gun 11 | . . 2 . 1 . . 1 . . 3 . . . 1 2 1 Ballistic Cannon . | . . . . . . . . . . . . . . . . . Launcher 9 | . 1 . . . . . . . 2 3 . . . . 3 . Special Weapon . | . . . . . . . . . . . . . . . . . Impact Weapon . | . . . . . . . . . . . . . . . . . Slashing Weapon . | . . . . . . . . . . . . . . . . . Piercing Weapon . | . . . . . . . . . . . . . . . . . Special Melee Weapon . | . . . . . . . . . . . . . . . . . Unidentified Prototypes 8 | . . 3 2 . . . . 1 . 1 . . . . 1 . Parts Lost 55 | . 1 2 . 15 . . 7 . . 10 . . . 3 11 6 Power 5 | . . . . 2 . . 1 . . 1 . . . . . 1 Propulsion 17 | . . . . 4 . . 3 . . 6 . . . . 2 2 Utility 10 | . . . . 3 . . 1 . . 1 . . . 1 3 1 Weapon 23 | . 1 2 . 6 . . 2 . . 2 . . . 2 6 2 Highest Loss Streak 13 | . 1 1 . 13 . . 5 . . 4 . . . 3 5 4 To Critical Strikes . | . . . . . . . . . . . . . . . . . Average Backups 4 | . . 1 4 4 3 4 3 3 4 4 5 5 5 4 4 3 Power . | . . . . . . . . . . . . . . . . . Propulsion . | . . . . . . . . . . . . . . . . . Utility 2 | . . . . 1 2 3 2 1 2 2 2 3 3 2 2 2 Weapon 2 | . . . 3 2 . 1 1 2 1 2 2 2 2 1 1 . Tool/Special . | . . . . . . . . . . . . . . . . . Unused Backups 2 | . . . 1 . . . . . . . . . . 1 . . Power . | . . . . . . . . . . . . . . . . . Propulsion . | . . . . . . . . . . . . . . . . . Utility 1 | . . . . . . . . . . . . . . 1 . . Weapon 1 | . . . 1 . . . . . . . . . . . . . Tool/Special . | . . . . . . . . . . . . . . . . . Average Slot Usage (%) 69 | . 3 22 70 85 84 84 74 65 68 76 86 86 64 78 48 22 Engine 1 | . . . 8 5 . . . . . 3 1 . . . . 2 Core 1 | . . . . . 7 7 2 6 3 2 . . . . . . Reactor 1 | . . . . . . . . . . . 4 6 6 6 3 . Leg 2 | . . . . . . . . . . . 2 11 13 13 1 . Hover 2 | . . . . . . . . . . 6 10 1 . . . . Flight 10 | . . 5 23 23 30 30 25 20 20 9 . . . . . . Device 9 | . . 5 14 11 . . 3 5 5 12 13 13 13 8 11 . Processor 16 | . . . 6 13 30 30 24 20 20 20 20 20 20 20 17 14 Hackware 3 | . . . . . . . . 6 6 6 6 6 6 6 2 . Energy Gun 9 | . . 5 17 25 . . . . . 4 9 13 3 14 3 . Ballistic Gun 3 | . . 5 . 1 15 15 16 . . 2 9 . . 2 5 . Launcher 3 | . 3 . . . . . . . 10 3 7 13 1 2 1 . Peak Build Rating 69 | . 1 13 33 42 32 32 37 45 54 58 64 69 62 68 68 29 Average Rating 44 | . . 5 22 35 31 32 32 44 46 52 59 65 52 64 46 18 On Entrance 35 | . . . 13 33 30 32 32 36 39 54 54 64 66 62 68 14 Naked Turns 163 | . 47 116 . . . . . . . . . . . . . . Heaviest Build 38 | . 3 7 16 23 12 12 13 15 22 29 36 36 29 38 38 23 Greatest Support 40 | 3 3 10 20 20 16 16 22 18 18 24 20 40 40 40 40 12 Greatest Overweight (x) 11 | . . 2 1 4 . . 1 . 1 2 3 1 . . 11 4 Average Overweight (x) . | . . . . 1 . . . . . . 1 . . . 2 . Largest Inventory Capacity 5 | 5 5 5 5 5 5 5 5 5 5 5 5 5 5 5 5 5 Average Capacity 5 | 5 5 5 5 5 5 5 5 5 5 5 5 5 5 5 5 5 Most Carried 5 | . 1 4 5 5 4 4 5 5 5 5 5 5 5 5 5 5 Average Carried 4 | . . 1 4 4 3 4 3 3 4 4 4 5 5 4 4 4 Final Capacity 5 | 5 5 5 5 5 5 5 5 5 5 5 5 5 5 5 5 5 Final Carried 5 | . . 4 5 2 4 4 5 4 5 5 5 5 5 5 5 5 Class Distribution -------------------- 47% | Mutant 26% | Gunner 20% | Scavenger-Gunner 3% | Sprinter Dominant Class ---------------- Mutant | -10/Materials Mutant | -9/Materials Mutant | -8/Materials Gunner | -7/Factory Scavenger-Sprinter | -7/Waste Scavenger-Sprinter | -7/Factory Scavenger-Sprinter | -7/DSF Mutant | -6/Factory Mutant | -6/Waste Gunner | -6/Factory Scavenger-Gunner | -6/Lower Caves Scavenger-Gunner | -6/Lower Caves Mutant | -6/Data Miner Gunner | -5/Proximity Caves Mutant | -5/Factory Mutant | -4/Factory Resources | -11 -10 -9 -8 -7 -7 -7 -7 -6 -6 -6 -6 -6 -6 -5 -5 -4 ----------- Run | Yrd Mat Mat Mat Fac Was Fac DSF Fac Was Fac Low Low Dat Pro Fac Fac Matter Collected 2971 | 199 12 251 116 208 . . 103 . 812 278 412 54 . 91 404 31 Remotely . | . . . . . . . . . . . . . . . . . Salvage Created 5686 | . 26 479 596 1413 . . 100 . 980 445 339 56 . 55 1167 30 Parts 218 | . 6 24 21 66 . . 7 . . 27 17 . . . 47 3 Haulers Intercepted 10 | . . 3 3 2 . . . . . 1 . . . . 1 . Recyclers Shooed 7 | . . . 3 . . . . . . . . . . . 4 . Parts Field Recycled . | . . . . . . . . . . . . . . . . . Retrieved Matter . | . . . . . . . . . . . . . . . . . Parts Self-Destructed 29 | . . . . . . . . . . . 17 11 . 1 . . Prevented 4 | . . . . . . . . . . . 4 . . . . . Kills | -11 -10 -9 -8 -7 -7 -7 -7 -6 -6 -6 -6 -6 -6 -5 -5 -4 ------- Run | Yrd Mat Mat Mat Fac Was Fac DSF Fac Was Fac Low Low Dat Pro Fac Fac Combat Hostiles Destroyed 62 | . 3 8 4 16 . . 3 . 6 4 9 . . . 9 . Guns 37 | . . 8 4 14 . . 3 . . . 7 . . . 1 . AOE 23 | . 3 . . . . . . . 6 4 2 . . . 8 . Classes Destroyed 21 | . 1 4 2 5 . . 2 . 1 3 . 1 . . 2 . Worker 13 | . . . 1 9 . . . . . 2 . . . . 1 . Builder 10 | . . . . 2 . . . . . 2 . . . . 6 . Tunneler 4 | . . . . . . . . . . 2 . . . . 1 1 Hauler 10 | . . 3 3 2 . . . . . 1 . . . . 1 . Recycler 13 | . . 1 4 3 . . . . . . . . . . 5 . Mechanic 1 | . . . . . . . . . . . . . . . 1 . Operator 4 | . . . 2 1 . . . . . 1 . . . . . . Drone 1 | . . . . . . . . . . . . . . . 1 . Watcher 2 | . . . . 1 . . . . . . . . . . 1 . Swarmer 21 | . 3 4 2 6 . . . . . . 5 . . . 1 . Cutter 2 | . . . . . . . 2 . . . . . . . . . Grunt 17 | . . 1 2 5 . . . . . 1 3 . . . 5 . Brawler 2 | . . . . 2 . . . . . . . . . . . . Sentry 5 | . . 3 . 1 . . . . . . 1 . . . . . Specialist 1 | . . . . . . . 1 . . . . . . . . . Hunter 7 | . . . . 3 . . . . . 1 . . . . 3 . Programmer 2 | . . . . 1 . . . . . 1 . . . . . . Behemoth 1 | . . . . . . . . . . 1 . . . . . . Compactor 6 | . . . . . . . . . 6 . . . . . . . Samaritan 2 | . . . . . . . . . . . . 1 . 1 . . Surgeon 1 | . . . . . . . . . . 1 . . . . . . Wasp 3 | . . . . . . . . . . 3 . . . . . . Thug 3 | . . . . . . . . . . 1 . . . . 2 . Butcher 1 | . . . . . . . . . . . . . . . 1 . Best Kill Streak 10 | . 3 5 4 7 . . 3 . 3 6 3 . . . 10 1 Combat Bots Only 5 | . 3 5 2 4 . . 3 . 3 2 3 . . . 3 . Max Kills in Single Turn 5 | . 2 2 2 2 . . 1 . 1 3 2 1 . 1 5 1 Gunslinging 1 | . . 1 1 . . . . . . . . . . . . . Exploded 3 | . 2 . . . . . . . 1 2 2 . . . 3 . Melee . | . . . . . . . . . . . . . . . . . Uniques/NPCs Destroyed . | . . . . . . . . . . . . . . . . . Combat | -11 -10 -9 -8 -7 -7 -7 -7 -6 -6 -6 -6 -6 -6 -5 -5 -4 -------- Run | Yrd Mat Mat Mat Fac Was Fac DSF Fac Was Fac Low Low Dat Pro Fac Fac Hostile Shots Fired 649 | . 12 92 24 136 . . 37 . . 38 15 1 . 18 124 152 Missed 254 | . 7 41 8 47 . . 20 . . 17 5 1 . 6 39 63 Hits 395 | . 5 51 16 89 . . 17 . . 21 10 . . 12 85 89 Melee 3 | . . . . . . . 1 . . 2 . . . . . . Projectile 392 | . 5 51 16 89 . . 16 . . 19 10 . . 12 85 89 AOE 1 | . . . . . . . 1 . . . . . . . . . Critical Strikes 10 | . . 1 . 2 . . . . . . 1 . . . 5 1 Damage Taken 7760 | . 143 707 177 1409 . . 483 . . 1135 190 . . 327 1688 1501 Core 3323 | . 83 391 39 448 . . 95 . . 267 45 . . 79 707 1169 Absorbed by Shields . | . . . . . . . . . . . . . . . . . Regen/Repaired (Parts) 366 | . . . . . . . . . 67 177 32 . . . . 90 Core Remaining (%) 52 | 100 66 2 92 . . . 22 . . . . . . 54 29 . Volleys Fired 272 | . 2 37 39 71 2 . 5 1 24 30 14 4 . 9 26 8 Largest 4 | . 1 2 2 4 2 . 3 1 2 3 3 2 . 4 3 1 Hottest 333 | . 30 130 126 252 51 . 74 81 78 81 132 132 . 333 243 88 Shots Fired 576 | . 2 63 78 211 4 . 13 1 48 36 35 9 . 21 47 8 Gun 474 | . . 63 78 211 4 . 13 . . 10 32 8 . 15 37 3 Cannon 24 | . . . . . . . . 1 . 14 . . . 3 1 5 Launcher 78 | . 2 . . . . . . . 48 12 3 1 . 3 9 . Special . | . . . . . . . . . . . . . . . . . Kinetic 127 | . . 38 . 14 4 . 13 . . 2 28 . . 3 22 3 Thermal 316 | . . 25 68 172 . . . . . 8 4 8 . 15 16 . Explosive 69 | . 2 . . . . . . . 48 8 . . . 3 8 . Electromagnetic 64 | . . . 10 25 . . . 1 . 18 3 1 . . 1 5 Robot Hit Streak 19 | . . 17 6 19 8 . 5 . 9 7 10 5 . 14 15 4 Robot Miss Streak 6 | . 2 4 2 6 1 . 5 . 1 2 1 2 . . 3 1 Penetration Max 1 | . . . . . . . . . . . . . . . 1 . Secondary Targets 9 | . . 2 2 3 . . . . . . 2 . . . . . Max Gunslinging Chain 1 | . . 1 1 1 . . . . . . 1 . . . . . Shots Hit Robots 354 | . . 49 41 121 3 . 9 . 37 22 25 6 . 9 26 6 Core Hits 270 | . 3 18 19 60 1 . 6 . 16 41 15 6 . 9 74 2 Critical Kills 4 | . . . . . . . 1 . . . 2 . . . 1 . Critical Parts Destroyed 1 | . . . . . . . . . . . . . . . 1 . Critical Strikes 21 | . . 1 1 7 . . 1 . . 3 2 1 . 2 3 . Burn 12 | . . 1 1 7 . . . . . . . 1 . 1 1 . Destroy 6 | . . . . . . . 1 . . . 2 . . 1 2 . Corrupt 3 | . . . . . . . . . . 3 . . . . . . Melee Attacks . | . . . . . . . . . . . . . . . . . Impact . | . . . . . . . . . . . . . . . . . Slashing . | . . . . . . . . . . . . . . . . . Piercing . | . . . . . . . . . . . . . . . . . Sneak Attacks . | . . . . . . . . . . . . . . . . . Combat Hostiles . | . . . . . . . . . . . . . . . . . Follow-up Attacks . | . . . . . . . . . . . . . . . . . Damage Inflicted 16592 | . 91 709 747 2531 73 . 107 . 5582 2149 542 227 . 781 2871 182 Guns 5318 | . . 709 747 2217 73 . 107 . . 118 356 90 . 123 730 48 Cannons 365 | . . . . . . . . . . 162 . . . 69 . 134 Explosions 10909 | . 91 . . 314 . . . . 5582 1869 186 137 . 589 2141 . Melee . | . . . . . . . . . . . . . . . . . Ramming . | . . . . . . . . . . . . . . . . . Kinetic 1762 | . . 451 . 196 73 . 107 . . 29 303 . . 16 539 48 Thermal 3583 | . . 258 655 1915 . . . . . 148 53 90 . 176 288 . Explosive 9974 | . 91 . . . . . . . 5582 1683 . . . 589 2029 . Electromagnetic 1273 | . . . 92 420 . . . . . 289 186 137 . . 15 134 Impact . | . . . . . . . . . . . . . . . . . Slashing . | . . . . . . . . . . . . . . . . . Piercing . | . . . . . . . . . . . . . . . . . Highest Corruption 14 | . . 3 . 4 12 12 12 . . 14 14 14 14 14 3 . Average Corruption 10 | . . 3 . 3 9 12 12 . . 5 14 14 14 14 2 . Corruption Purged . | . . . . . . . . . . . . . . . . . Corruption Blocked . | . . . . . . . . . . . . . . . . . Effects 121 | . . 5 . 3 2 . 10 . . 15 40 20 5 20 1 . Message Errors 24 | . . 3 . . 1 . . . . 1 8 5 1 5 . . Matter Fused 29 | . . 1 . 1 1 . 3 . . 4 7 6 . 6 . . Heat Flow Errors 18 | . . 1 . 1 . . 1 . . 4 3 2 1 5 . . Energy Discharges 11 | . . . . . . . 1 . . . 8 1 . 1 . . Parts Fused 2 | . . . . . . . . . . 1 1 . . . . . Data Loss (minor) 19 | . . . . . . . 1 . . 2 7 4 3 1 1 . Data Loss (major) 6 | . . . . 1 . . . . . 1 2 . . 2 . . Misfires 4 | . . . . . . . 1 . . 1 1 1 . . . . Alerts 4 | . . . . . . . . . . . 3 1 . . . . Misdirections 3 | . . . . . . . 3 . . . . . . . . . Weapon Failures 1 | . . . . . . . . . . 1 . . . . . . Overload Shots . | . . . . . . . . . . . . . . . . . Overflow Damage 309 | . . . . 84 . . . . 4 152 . . . 28 25 16 Projectiles 44 | . . . . . . . . . . . . . . 28 . 16 Explosions 265 | . . . . 84 . . . . 4 152 . . . . 25 . Melee . | . . . . . . . . . . . . . . . . . Knockbacks . | . . . . . . . . . . . . . . . . . Impact . | . . . . . . . . . . . . . . . . . Kinetic . | . . . . . . . . . . . . . . . . . Secondary . | . . . . . . . . . . . . . . . . . Self-Inflicted Damage 734 | . 42 . . . . . . . . 554 . . . . 138 . Shots 24 | . 2 . . . . . . . . 17 . . . . 5 . Rammed 1 | . . . . . . . . . . . . . . . 1 . Targets Rammed 1 | . . . . . . . . . . . . . . . 1 . Kicked . | . . . . . . . . . . . . . . . . . Crushed . | . . . . . . . . . . . . . . . . . Highest Temperature 552 | . . 239 90 496 2 . 198 32 30 230 191 200 248 552 393 12 Average Temperature 86 | . . 59 23 95 2 . 115 19 13 75 57 85 126 144 144 7 Received Heat Transfer 1143 | . 36 225 72 309 . . 45 . . 117 48 . . 48 81 162 Effects 10 | . . . . 4 . . . . . . . . . 5 1 . Shutdowns 2 | . . . . 1 . . . . . . . . . 1 . . Interference 4 | . . . . 3 . . . . . . . . . 1 . . Matter Decay 1 | . . . . . . . . . . . . . . 1 . . Damage (minor) 1 | . . . . . . . . . . . . . . . 1 . Damage (major) 2 | . . . . . . . . . . . . . . 2 . . Siege Activations . | . . . . . . . . . . . . . . . . . Martial Activations . | . . . . . . . . . . . . . . . . . Shielding Activations . | . . . . . . . . . . . . . . . . . Robots Disrupted . | . . . . . . . . . . . . . . . . . Combat Hostiles . | . . . . . . . . . . . . . . . . . Robots Corrupted . | . . . . . . . . . . . . . . . . . Combat Hostiles . | . . . . . . . . . . . . . . . . . Parts Fried 3 | . . . . 2 . . . . . . . . . . . 1 Impact Corruptions . | . . . . . . . . . . . . . . . . . Robots Melted 2 | . . . . 2 . . . . . . . . . . . . Combat Hostiles 2 | . . . . 2 . . . . . . . . . . . . Parts Melted 13 | . . . 6 5 . . . . . . . 1 . . 1 . Heat Transferred 7816 | . . 708 1480 4196 . . . . . 309 111 259 . 333 420 . Parts Sabotaged . | . . . . . . . . . . . . . . . . . Parts Stolen . | . . . . . . . . . . . . . . . . . Parts Stripped . | . . . . . . . . . . . . . . . . . Power Chain Reactions 1 | . . . . 1 . . . . . . . . . . . . Alert | -11 -10 -9 -8 -7 -7 -7 -7 -6 -6 -6 -6 -6 -6 -5 -5 -4 ------- Run | Yrd Mat Mat Mat Fac Was Fac DSF Fac Was Fac Low Low Dat Pro Fac Fac Maximum Alert Level 5 | . . . . 2 . . . . . 5 . . . . 2 1 Low Security (%) 59 | 100 100 100 100 55 100 100 100 100 100 21 . . . . 5 28 Level 1 24 | . . . . 36 . . . . . 4 . . . . 74 71 Level 2 6 | . . . . 7 . . . . . 8 . . . . 20 . Level 3 2 | . . . . . . . . . . 18 . . . . . . Level 4 5 | . . . . . . . . . . 34 . . . . . . Level 5 1 | . . . . . . . . . . 12 . . . . . . High Security . | . . . . . . . . . . . . . . . . . Max Security . | . . . . . . . . . . . . . . . . . Peak Influence 1820 | . 99 133 102 453 154 93 130 49 20 1820 . . . . 537 259 Initial 259 | . . 28 54 38 154 93 65 49 . . . . . . 150 259 Average 245 | . 48 29 40 165 143 93 98 8 1 902 . . . . 312 220 Influence Increases 5972 | . 99 257 221 821 . . 100 . 77 2290 723 93 . 73 1127 91 Destroy 0b10 Robot/C 2180 | . 60 160 80 340 . . 60 . . 760 340 40 . 20 320 . Destroy 0b10 Robot/NC 325 | . . 20 50 90 . . . . . 65 . . . 10 85 5 Destroy Leader 446 | . 10 46 16 106 . . 10 . . 134 30 10 . 10 74 . Allied During Kill 1431 | . . . . 25 . . . . . 871 353 43 . 33 106 . Successful Hack 32 | . . . . 6 . . . . . . . . . . . 26 Disable Machine 615 | . 15 15 30 180 . . . . . 285 . . . . 90 . Destroy Structure 523 | . 14 1 . 74 . . . . 77 175 . . . . 182 . Advance Influence 150 | . . . . . . . . . . . . . . . 150 . Partial Spotted 15 | . . 15 . . . . . . . . . . . . . . Lose Combat Pursuer 255 | . . . 45 . . . 30 . . . . . . . 120 60 Influence Decreases 5782 | . 30 196 265 466 307 41 98 95 77 470 1090 543 1003 73 596 432 Entered New Map 2793 | . . 41 76 48 287 41 28 46 . . 674 277 1003 . . 272 Time Decay 2294 | . 20 135 189 253 20 . . 49 77 330 416 246 . 73 386 100 Lost Part 515 | . 10 20 . 145 . . 70 . . 100 . . . . 110 60 Lost Ally 180 | . . . . 20 . . . . . 40 . 20 . . 100 . Squads Dispatched 27 | . . . 1 6 . 1 2 1 . 8 . . . . 7 1 Investigation 4 | . . . . 1 . 1 . 1 . . . . . . . 1 Extermination 7 | . . . . 2 . . . . . 3 . . . . 2 . Reinforcement 13 | . . . 1 3 . . 2 . . 4 . . . . 3 . Assault 3 | . . . . . . . . . . 1 . . . . 2 . Garrison . | . . . . . . . . . . . . . . . . . Intercept . | . . . . . . . . . . . . . . . . . Searches Triggered . | . . . . . . . . . . . . . . . . . Data Miner Redirects 1 | . . . . . . . . . . . . . . . 1 . Construction Impeded 3 | . . . . . . . . . . 2 . . . . 1 . Haulers Reinforced 2 | . . . . . . . . . . 2 . . . . . . Active Scanning Responses . | . . . . . . . . . . . . . . . . . Cargo Convoy Interrupts . | . . . . . . . . . . . . . . . . . Stealth | -11 -10 -9 -8 -7 -7 -7 -7 -6 -6 -6 -6 -6 -6 -5 -5 -4 --------- Run | Yrd Mat Mat Mat Fac Was Fac DSF Fac Was Fac Low Low Dat Pro Fac Fac Distress Signals 8 | . . 1 3 2 . . . . . 1 . . . . . 1 Communications Jammed . | . . . . . . . . . . . . . . . . . Distress Signals . | . . . . . . . . . . . . . . . . . Times Spotted 188 | . 7 17 11 23 6 . 8 . 6 34 16 2 . 3 30 25 Peak Tracking Total 12 | . 4 7 4 5 6 . 4 . 3 6 4 2 . 2 7 12 Tactical Retreats 13 | . . . 3 . . . 2 . . . . . . . 5 3 Traps | -11 -10 -9 -8 -7 -7 -7 -7 -6 -6 -6 -6 -6 -6 -5 -5 -4 ------- Run | Yrd Mat Mat Mat Fac Was Fac DSF Fac Was Fac Low Low Dat Pro Fac Fac Traps Triggered 16 | . 1 . . 3 . . 2 1 . 9 . . . . . . Indirectly . | . . . . . . . . . . . . . . . . . Trap Hack Attempts . | . . . . . . . . . . . . . . . . . Triggered . | . . . . . . . . . . . . . . . . . Disarmed . | . . . . . . . . . . . . . . . . . Reprogrammed . | . . . . . . . . . . . . . . . . . Reused . | . . . . . . . . . . . . . . . . . Traps Extracted . | . . . . . . . . . . . . . . . . . Installed . | . . . . . . . . . . . . . . . . . Triggered . | . . . . . . . . . . . . . . . . . Machines | -11 -10 -9 -8 -7 -7 -7 -7 -6 -6 -6 -6 -6 -6 -5 -5 -4 ---------- Run | Yrd Mat Mat Mat Fac Was Fac DSF Fac Was Fac Low Low Dat Pro Fac Fac Machines Disabled 41 | . 1 1 2 12 . . . . . 19 . . . . 6 . Max in Single Turn 12 | . 1 1 1 12 . . . . . 5 . . . . 3 . Machines Repaired . | . . . . . . . . . . . . . . . . . Machines Dismantled . | . . . . . . . . . . . . . . . . . Machines Sabotaged . | . . . . . . . . . . . . . . . . . Overloaded Fab Kills . | . . . . . . . . . . . . . . . . . Hacking | -11 -10 -9 -8 -7 -7 -7 -7 -6 -6 -6 -6 -6 -6 -5 -5 -4 --------- Run | Yrd Mat Mat Mat Fac Was Fac DSF Fac Was Fac Low Low Dat Pro Fac Fac Machines Accessed 13 | . . . . 1 . 1 . 1 . 1 . . 4 1 2 2 Terminals 2 | . . . . . . 1 . . . . . . . 1 . . Fabricators 4 | . . . . 1 . . . . . 1 . . . . 2 . Repair Stations 3 | . . . . . . . . 1 . . . . . . . 2 Recycling Units . | . . . . . . . . . . . . . . . . . Scanalyzers . | . . . . . . . . . . . . . . . . . Garrison Access . | . . . . . . . . . . . . . . . . . Total Hacks 49 | . . . . 1 . 2 . 4 . 1 . . 30 1 5 5 Successful 41 | . . . . 1 . 1 . 1 . . . . 30 1 5 2 Failed 8 | . . . . . . 1 . 3 . 1 . . . . . 3 Catastrophic 3 | . . . . . . 1 . . . 1 . . . . . 1 Database Lockouts . | . . . . . . . . . . . . . . . . . Manual . | . . . . . . . . . . . . . . . . . Terminals 3 | . . . . . . 2 . . . . . . . 1 . . Fabricators 7 | . . . . 1 . . . . . 1 . . . . 5 . Repair Stations 9 | . . . . . . . . 4 . . . . . . . 5 Recycling Units . | . . . . . . . . . . . . . . . . . Scanalyzers . | . . . . . . . . . . . . . . . . . Garrison Access . | . . . . . . . . . . . . . . . . . Terminal Hacks 32 | . . . . . . 1 . . . . . . 30 1 . . Record 12 | . . . . . . . . . . . . . 11 1 . . Part Schematic 11 | . . . . . . . . . . . . . 11 . . . Robot Schematic 5 | . . . . . . . . . . . . . 5 . . . Prototype ID Bank 3 | . . . . . . . . . . . . . 3 . . . Open DSF 1 | . . . . . . 1 . . . . . . . . . . Fabricator Hacks 6 | . . . . 1 . . . . . . . . . . 5 . Network Status 1 | . . . . . . . . . . . . . . . 1 . Load Schematic 2 | . . . . . . . . . . . . . . . 2 . Build 3 | . . . . 1 . . . . . . . . . . 2 . Repair Station Hacks 3 | . . . . . . . . 1 . . . . . . . 2 Scan Component 2 | . . . . . . . . 1 . . . . . . . 1 Repair 1 | . . . . . . . . . . . . . . . . 1 Recycling Unit Hacks . | . . . . . . . . . . . . . . . . . Scanalyzer . | . . . . . . . . . . . . . . . . . Garrison Access Hacks . | . . . . . . . . . . . . . . . . . Unauthorized Hacks . | . . . . . . . . . . . . . . . . . Terminals . | . . . . . . . . . . . . . . . . . Fabricators . | . . . . . . . . . . . . . . . . . Repair Stations . | . . . . . . . . . . . . . . . . . Recycling Units . | . . . . . . . . . . . . . . . . . Scanalyzers . | . . . . . . . . . . . . . . . . . Garrison Access . | . . . . . . . . . . . . . . . . . Data Cores Recovered 1 | . . . 1 . . . . . . . . . . . . . Used . | . . . . . . . . . . . . . . . . . Hacking Detections 8 | . . . . 1 . 1 . 1 . 1 . . . 1 1 2 Full Trace Events 3 | . . . . . . 1 . 1 . . . . . . . 1 Feedback Events . | . . . . . . . . . . . . . . . . . Feedback Blocked . | . . . . . . . . . . . . . . . . . Robot Schematics Acquired 5 | . . . . . . . . . . . . . 5 . . . Robots Built 5 | . . . . 3 . . . . . . . . . . 2 . Authchips 1 | . . . . . . . . . . . . . . . 1 . Time 210 | . . . . 134 . . . . . . . . . . 76 . Total Robot Build Rating 22 | . . . . 12 . . . . . . . . . . 10 . Part Schematics Acquired 11 | . . . . . . . . . . . . . 11 . . . Parts Built 1 | . . . . . . . . . . . . . . . 1 . Authchips 1 | . . . . . . . . . . . . . . . 1 . Time 56 | . . . . . . . . . . . . . . . 56 . Total Part Build Rating 6 | . . . . . . . . . . . . . . . 6 . Parts Repaired 1 | . . . . . . . . . . . . . . . . 1 Time 28 | . . . . . . . . . . . . . . . . 28 Parts Recycled . | . . . . . . . . . . . . . . . . . Recycled Matter . | . . . . . . . . . . . . . . . . . Retrieved Matter . | . . . . . . . . . . . . . . . . . Retrieved Components . | . . . . . . . . . . . . . . . . . Parts Scanalyzed . | . . . . . . . . . . . . . . . . . Part Schematics Acquired . | . . . . . . . . . . . . . . . . . Parts Damaged . | . . . . . . . . . . . . . . . . . Bothacking | -11 -10 -9 -8 -7 -7 -7 -7 -6 -6 -6 -6 -6 -6 -5 -5 -4 ------------ Run | Yrd Mat Mat Mat Fac Was Fac DSF Fac Was Fac Low Low Dat Pro Fac Fac Used RIF Installer . | . . . . . . . . . . . . . . . . . Robots Hacked . | . . . . . . . . . . . . . . . . . Non-combat . | . . . . . . . . . . . . . . . . . Combat . | . . . . . . . . . . . . . . . . . Robot Hacks Applied . | . . . . . . . . . . . . . . . . . Relay Couplers Released . | . . . . . . . . . . . . . . . . . Fabnet Peak Effective % . | . . . . . . . . . . . . . . . . . Robots Rewired . | . . . . . . . . . . . . . . . . . Allies Hacked 1 | . . . . 1 . . . . . . . . . . . . Hacks Repelled . | . . . . . . . . . . . . . . . . . Allies | -11 -10 -9 -8 -7 -7 -7 -7 -6 -6 -6 -6 -6 -6 -5 -5 -4 -------- Run | Yrd Mat Mat Mat Fac Was Fac DSF Fac Was Fac Low Low Dat Pro Fac Fac Total Allies 24 | . . . . 3 . . . . 19 . . . . . 2 . Largest Group 19 | . . . . 3 . . . . 19 19 9 9 7 7 7 . Highest-Rated Group 702 | . . . . 60 . . . . 702 702 390 389 318 318 318 . Highest-Rated Ally 50 | . . . . 20 . . . . 50 50 50 50 50 50 50 . Total Orders 4 | . . . . . . . . . 2 . . . . . 2 . RETURN 4 | . . . . . . . . . 2 . . . . . 2 . Ally Attacks 305 | . . . . 3 . . . . . 168 29 8 . 25 72 . Total Damage 8719 | . . . . 40 . . . . . 5398 1070 287 . 557 1367 . Kills 64 | . . . . 1 . . . . . 42 8 2 . 3 8 . Allies Corrupted 1 | . . . . . . . . . . 1 . . . . . . Allies Melted . | . . . . . . . . . . . . . . . . . Intel | -11 -10 -9 -8 -7 -7 -7 -7 -6 -6 -6 -6 -6 -6 -5 -5 -4 ------- Run | Yrd Mat Mat Mat Fac Was Fac DSF Fac Was Fac Low Low Dat Pro Fac Fac Active Infowar (turns) 472 | . . 45 . . . . 52 . . . . . . . 159 216 Optics 375 | . . . . . . . . . . . . . . . 159 216 Structural 45 | . . 45 . . . . . . . . . . . . . . Jamming 52 | . . . . . . . 52 . . . . . . . . . Robot Analysis Total . | . . . . . . . . . . . . . . . . . Derelict Logs Recovered 1 | . . . . . . . . . . . . 1 . . . . Drone Launches 7 | . . . . . . . . . 2 . . . . . 5 . Drone Recoveries 5 | . . . . . . . . . 2 . . . . . 3 . Exploration | -11 -10 -9 -8 -7 -7 -7 -7 -6 -6 -6 -6 -6 -6 -5 -5 -4 ------------- Run | Yrd Mat Mat Mat Fac Was Fac DSF Fac Was Fac Low Low Dat Pro Fac Fac Turns Passed 7401 | 10 72 366 411 1104 59 1 169 340 815 796 1018 530 137 448 909 216 Spaces Moved 5247 | 20 124 393 362 572 161 3 203 101 676 711 564 332 96 309 395 225 Core 991 | 20 124 289 . 72 . . . . . . . . . . 328 158 Treads . | . . . . . . . . . . . . . . . . . Legs 986 | . . . . . . . . . . . 182 332 96 309 67 . Wheels 66 | . . . . . . . . . . . . . . . . 66 Hover 620 | . . . . . . . . . . 237 382 . . . . 1 Flight 2584 | . . 104 362 500 161 3 203 101 676 474 . . . . . . Fastest Speed 26 | 50 50 37 28 26 26 26 26 34 34 29 156 120 120 120 50 50 Average Speed 96 | 50 50 54 68 106 26 26 34 34 64 79 170 129 120 120 179 78 Slowest Speed 600 | 50 50 150 107 250 26 26 112 34 114 240 330 190 120 120 600 250 Overloaded Moves . | . . . . . . . . . . . . . . . . . Propulsion Burnouts . | . . . . . . . . . . . . . . . . . Robots Hopped 7 | . . 1 1 . 4 . 1 . . . . . . . . . Potential Cave-ins . | . . . . . . . . . . . . . . . . . Cave-ins Triggered . | . . . . . . . . . . . . . . . . . Exploration Rate (%) 46 | 4 34 39 32 23 92 . 95 3 95 24 81 63 70 57 18 7 Regions Visited 16 Branch Regions 4 Pre-discovered Areas 1 | . . . . . . . . . . . . . 1 . . . Known Exits Taken 2 | . . . . . . 1 . . . . . . . . 1 . Unknown Exits Taken 9 | 1 1 1 1 . . . . . . 1 1 1 1 1 . . Scrap Searched 5 | . . . . . . . . . . . 2 2 . 1 . . Spaces Dug 45 | . . . . . . . . . 32 . . . . . 13 . Terrain Destroyed 616 | . 13 . . 83 . . . . 236 120 . . . 50 114 . Melee . | . . . . . . . . . . . . . . . . . Projectile 2 | . . . . . . . . . . . . . . 1 1 . AOE 614 | . 13 . . 83 . . . . 236 120 . . . 49 113 . Terrain Rammed . | . . . . . . . . . . . . . . . . . Walls Destroyed . | . . . . . . . . . . . . . . . . . Machines Disabled . | . . . . . . . . . . . . . . . . . Actions | -11 -10 -9 -8 -7 -7 -7 -7 -6 -6 -6 -6 -6 -6 -5 -5 -4 --------- Run | Yrd Mat Mat Mat Fac Was Fac DSF Fac Was Fac Low Low Dat Pro Fac Fac Total 7121 | 19 131 478 443 906 169 3 290 406 1008 920 611 425 118 373 565 256 Wait 1357 | . 4 24 17 233 9 . 27 298 296 154 22 88 16 45 110 14 Move 5221 | 19 123 390 359 572 154 3 200 101 675 709 563 331 95 308 394 225 Hop 5 | . . 1 1 . 2 . 1 . . . . . . . . . Pick Up 55 | . 1 12 11 9 2 . 7 . 2 . 1 . . 2 6 2 Fast Attach 41 | . . . 1 4 . . 4 1 1 11 3 1 3 4 4 4 Attach 55 | . 1 9 5 12 . . 5 2 5 2 1 . . 1 10 2 Detach 16 | . . 1 . . . . . 1 4 2 . . 1 . 6 1 Swap 22 | . . 3 5 4 . . . . 1 6 1 . . 1 1 . Drop 40 | . . 1 5 1 . . 5 2 . 6 6 1 3 3 7 . Fire 272 | . 2 37 39 71 2 . 5 1 24 30 14 4 . 9 26 8 Melee . | . . . . . . . . . . . . . . . . . Ram 1 | . . . . . . . . . . . . . . . 1 . Kick . | . . . . . . . . . . . . . . . . . Crush . | . . . . . . . . . . . . . . . . . Escape Stasis 36 | . . . . . . . 36 . . . . . . . . . Rewire . | . . . . . . . . . . . . . . . . . Trap . | . . . . . . . . . . . . . . . . . Miscellaneous . | . . . . . . . . . . . . . . . . . Route ------- -11/Scrapyard -10/Materials -9/Materials -8/Materials -7/Factory -7/Waste -7/Factory -7/DSF -6/Factory -6/Waste -6/Factory (discovered 2 exits: *Fac / [*Low]) -6/Lower Caves -6/Lower Caves -6/Data Miner -5/Proximity Caves -5/Factory -4/Factory (discovered 1 exit: [*Arm]) History --------- Turn | Location | Event 2 | -11/Scrapyard | Discovered new exit (range 16) 11 | -11/Scrapyard | Entered Materials 75 | -10/Materials | Discovered new exit (range 16) 83 | -10/Materials | Entered another Materials area 83 | -9/Materials | Evolved 2 slots: Utility x2 243 | -9/Materials | Core integrity fell below 50% 303 | -9/Materials | Build established: Mutant 328 | -9/Materials | Core integrity fell below 20% 443 | -9/Materials | Discovered new exit (range 10) 449 | -9/Materials | Entered another Materials area 449 | -8/Materials | Evolved 2 slots: Propulsion x2 682 | -8/Materials | Discovered new exit (range 15) 860 | -8/Materials | Entered Factory 860 | -7/Factory | Evolved 2 slots: Weapon x2 1152 | -7/Factory | Build established: Gunner 1435 | -7/Factory | Fabricated B-48 Gladiator (x3) 1847 | -7/Factory | Core integrity fell below 50% 1867 | -7/Factory | Lost 13 parts (2p4n2u5w) 1964 | -7/Factory | Manually triggered Chute Trap 1964 | -7/Factory | Sucked down chute 1964 | -7/Factory | Entered Waste 1974 | -7/Waste | Spotted C-40 Crusher 1978 | -7/Waste | Spotted C-40 Crusher 1979 | -7/Waste | EMP discharged 1979 | -7/Waste | System corruption reached 10% 1990 | -7/Waste | Spotted C-40 Crusher 1990 | -7/Waste | Spotted C-40 Crusher 1991 | -7/Waste | Spotted C-40 Crusher 1992 | -7/Waste | Spotted C-40 Crusher 1996 | -7/Waste | Discovered new exit (range 16) 2023 | -7/Waste | Entered Factory 2024 | -7/Factory | Identified exit to DSF 2024 | -7/Factory | Entered DSF 2062 | -7/DSF | Additional patrols routed to DSF 2166 | -7/DSF | Discovered new exit (range 15) 2193 | -7/DSF | Entered Factory 2193 | -6/Factory | Evolved 2 slots: Utility x2 2196 | -6/Factory | Lost 5 parts (2n1u2w) 2454 | -6/Factory | Build established: Mutant 2533 | -6/Factory | Manually triggered Chute Trap 2533 | -6/Factory | Sucked down chute 2533 | -6/Factory | Entered Waste 2556 | -6/Waste | Spotted C-40 Crusher 2574 | -6/Waste | Destroyed C-40 Crusher 2593 | -6/Waste | Spotted C-40 Crusher 2603 | -6/Waste | Destroyed C-40 Crusher 2605 | -6/Waste | Spotted C-40 Crusher 2628 | -6/Waste | Destroyed C-40 Crusher 2741 | -6/Waste | Spotted C-40 Crusher 2745 | -6/Waste | Spotted C-40 Crusher 2768 | -6/Waste | Destroyed C-40 Crusher 2771 | -6/Waste | Destroyed C-40 Crusher 2774 | -6/Waste | Spotted C-40 Crusher 2788 | -6/Waste | Destroyed C-40 Crusher 2834 | -6/Waste | Discovered new exit (range 11) 2838 | -6/Waste | Warlord forces began an assault 3348 | -6/Waste | Entered Factory 3348 | -6/Factory | Accompanied by 19 allies 3586 | -6/Factory | Lost 4 allies 3621 | -6/Factory | Found Prototype Launcher 3621 | -6/Factory | Identified Scatter Rocket Array 3622 | -6/Factory | Found Scatter Rocket Array 3654 | -6/Factory | Lost 4 parts (1p1n1u1w) 3694 | -6/Factory | Spotted B-75 Beast 3700 | -6/Factory | Destroyed B-75 Beast 3731 | -6/Factory | Lost 4 parts (3n1w) 3764 | -6/Factory | Discovered new exit (range 15) 4048 | -6/Factory | First assault squad dispatched 4070 | -6/Factory | System corruption reached 10% 4108 | -6/Factory | Discovered new exit (range 10) 4144 | -6/Factory | Entered Lower Caves 4144 | -6/Lower Caves | Accompanied by 9 allies 4250 | -6/Lower Caves | Build established: Gunner 4266 | -6/Lower Caves | Attracted the attention of an 0b10 checkpoint 4740 | -6/Lower Caves | Build established: Scavenger-Gunner 5124 | -6/Lower Caves | Discovered new exit (range 13) 5132 | -6/Lower Caves | Encountered a Warlord checkpoint 5162 | -6/Lower Caves | Entered another Lower Caves area 5162 | -6/Lower Caves | Accompanied by 9 allies 5163 | -6/Lower Caves | Encountered a Warlord checkpoint 5450 | -6/Lower Caves | Learned 12 Factory zone layouts 5593 | -6/Lower Caves | Discovered new exit (range 11) 5692 | -6/Lower Caves | Entered Data Miner 5692 | -6/Data Miner | Accompanied by 7 allies 5695 | -6/Data Miner | Discovered new exit (range 6) 5717 | -6/Data Miner | Met Data Miner 5744 | -6/Data Miner | Learned location of Section 7 (-2) 5744 | -6/Data Miner | Acquired the access code to Warlord's prototype stash 5764 | -6/Data Miner | Received God Mode back door access code from Data Miner 5829 | -6/Data Miner | Entered Proximity Caves 5829 | -5/Proximity Caves | Accompanied by 7 allies 5832 | -5/Proximity Caves | Spotter reported a threat 5963 | -5/Proximity Caves | Spotted B-75 Beast 5982 | -5/Proximity Caves | Allies destroyed B-75 Beast 6004 | -5/Proximity Caves | Lost 3 parts (1u2w) 6234 | -5/Proximity Caves | Discovered new exit (range 15) 6277 | -5/Proximity Caves | Entered Factory 6277 | -5/Factory | Accompanied by 7 allies 6277 | -5/Factory | Evolved 2 slots: Utility x2 6278 | -5/Factory | Identified exit to Factory 6340 | -5/Factory | Build established: Gunner 6461 | -5/Factory | Lost 4 allies 6470 | -5/Factory | Lost 5 parts (1n4w) 6697 | -5/Factory | Fabricated Combat Drone Bay (x1) 6729 | -5/Factory | Build established: Mutant 6877 | -5/Factory | First assault squad dispatched 7028 | -5/Factory | Incoming assault squad redirected 7131 | -5/Factory | Fabricated H-66 Slayer (x2) 7163 | -5/Factory | Found Prototype Launcher 7164 | -5/Factory | Identified Tesla Bomb Launcher 7166 | -5/Factory | Found Tesla Bomb Launcher 7171 | -5/Factory | Core integrity fell below 50% 7186 | -5/Factory | Entered another Factory area 7186 | -4/Factory | Evolved 2 slots: Utility x2 7198 | -4/Factory | Lost 4 parts (2u2w) 7365 | -4/Factory | Core integrity fell below 50% 7382 | -4/Factory | Core integrity fell below 20% 7386 | -4/Factory | Repaired Mapping Drone Bay 7402 | -4/Factory | Discovered new exit (range 8) 7402 | -4/Factory | Destroyed by Y-72 Warden with Railgun Last Messages --------------- Critical hit (Burn: +37). Acquired Autogun. U-05 Engineer builds a Door. Adv. Targeting Computer destroyed. Autogun destroyed. Penetrated by Slug. S-27 Virus destroyed. R-10 Processor collects Lgt. Nuclear Core. Repair station completes Mapping Drone Bay repairs. Acquired Mapping Drone Bay. Slug penetrates S-27 Virus. S-27 Virus destroyed. U-05 Engineer builds a Wall. O-16 Technician: "IFF HANDSHAKE FAILED. SECURING TERMINAL." O-16 Technician sends out distress signal. ALERT: Security rotation in progress. EXIT=FOUND Penetrated by Slug. Map ----- +----------------------------------------------------+ | ?????????????????????????????????????????????????? | | ?????????????????????????????????????????????????? | | ?????????????????????????????????????????????????? | | ?????????????????????????????????????????????????? | | ?????????????????????????????????????????????????? | | ?????????????????????????????????????????????????? | | ?????????????????????????????????????????????????? | | ?????????????????????????????????????????????????? | | ?????????????????????????????????????????????????? | | ?????????????????????????????????????????????????? | | ?????????????????????????????????????????????????? | | ?????????????????????????????????????????????????? | | ?????????????????????????????????????????????????? | | ??????????????????????????#####??????????????????? | | ??????????????????????????# T ??????????????????? | | ????????????????##????????# ??????????????????? | | ????????????????#""???????# ???????????????????? | | ????????????????# " ??????# ""???????????????????? | | ????????????????? ?????# ""???????????????????? | | ?????????????????? ?????# ""???????????????????? | | ???????????????????"""????# ""???????????????????? | | ?????????????#??????#" ???# ???????????????????? | | ?????????????# Y ???#" ####+###########?????????? | | ?????????????# #" # #?????????? | | ?????????????# / #?????????? | | ?????????????+ < Y /@ " " !!! #?????????? | | ?????????????# / " "s!!! #?????????? | | ?????????????# #" # " " !! ########### | | ?????????????# Y ???#" ### " " ## """" | | ?????????????#??????#" ???# " " ## ""R" | | ???????????????????"""????# " " ## "" " | | ?????????????????? ?????# " " ## [% % | | ????????????????? ?????# " " # == | | ????????????????# " ??????# " " ## = | | ????????????????#""???????# ## | | ????????????????##????????# ## | | ??????????????????????????# ##"#######/ | | ??????????????????????????# | | ??????????????????????????# % | | ? ????????????????????????# | | " ???????########??######## """ """ "" """ """ " | | ??????? ?# """ """ """ """ """ " | | ????????? # """ """ """ """ """ " | | #??????????"""" # | | #??????????"""" + """ """ """ """^""" " | | #??????????"""" # """ """ """ """ """ " | | #????????????"" + """ """ """ """ """ " | | #?????????? # | | #???????? =???# | | #???????? ??????####+######+#####+########### | +----------------------------------------------------+ Best States ------------- Heat Dissipation 75 Energy Generation 21 Energy Capacity 290 Matter Stores 300 Matter Capacity 300 Sight Range 22 Terrain Scan Density 10 Jamming Range 12 Weapon Cycling 25 Evasion (%) 64 Targeting Accuracy 32 Target Analysis 8 Core Analysis 6 Authchip Count 2 Item Schematics ----------------- Combat Drone Bay | -6/Data Miner | Free Lgt. Regenerative Plating | -6/Data Miner | Free Cld. Gravmag System | -6/Data Miner | Free Adv. EM Disruption Field | -6/Data Miner | Free Plasma Sword | -6/Data Miner | Free Impulse Thruster | -6/Data Miner | Free HERF Cannon | -6/Data Miner | Free Imp. Force Booster | -6/Data Miner | Free Mic. Fission Core | -6/Data Miner | Free Mic. Antimatter Reactor | -6/Data Miner | Free Matter Neutralizer | -6/Data Miner | Free Robot Schematics ------------------ E-15 Imp | -6/Data Miner | Free H-66 Slayer | -6/Data Miner | Free R-10 Processor | -6/Data Miner | Free O-32 Director | -6/Data Miner | Free G-67 Veteran | -6/Data Miner | Free Fabricated ------------ B-48 Gladiator | x3 | -7/Factory | Preloaded Combat Drone Bay | x1 | -5/Factory | Authchip H-66 Slayer | x2 | -5/Factory | Authchip Repaired ---------- Mapping Drone Bay | 10% | -4/Factory Alien Tech Used ----------------- None Achievements -------------- Collateral Damage Challenges ------------ None Game ------ Seed AssembledSuperdenseCompanion Manual? 0 Play Time 01:12:04 Cumulative 185.1 hours Start 2025.10.12 @ 08:24:03 End 2025.10.12 @ 10:59:35 Sessions 1 Manual Loads 0 Difficulty Rogue Special Mode None Game No. 555 Rogue 554 Adventurer 1 Explorer 0 Win Type - Total 0 Types 0/0/0/0/0/0/0/0/0/0 Lore% 61 Gallery% 59 Achievement% 47 Wizard Run 0 Options --------- Layout 1 ASCII 0 Keyboard 0 Movement Mouse Keybinds 0 Fullscreen 1 Font 24/Smallcaps Map View 50x35 Zoom Use 0% Tactical HUD 0 Map Filters NONE Filters NONE Steam 1 RUN: c191eee7-6e22-4688-a33f-60f8895a3607